[Event "HUN-chT Youth 2019"]
[Site "Budapest"]
[Date "2019.10.27"]
[Round "3.26"]
[White "Juhasz, Judit"]
[Black "Ongut, Tamas Gunes"]
[Result "1-0"]
[ECO "B90"]
[WhiteElo "2004"]
[BlackElo "2214"]
[Annotator "NA"]
[PlyCount "109"]
[EventDate "2019.10.26"]
[EventType "team-tourn"]
[EventCountry "HUN"]
[SourceTitle "playchess.com"]
[Source "ChessBase"]
[SourceQuality "1"]
[TimeControl "5400+30"]

1. e4 {[%emt 0:00:00]} c5 {[%emt 0:01:38]} 2. Nf3 {[%emt 0:00:00]} d6 {[%emt 0:01:13]} 3. d4 {[%emt 0:00:26]} cxd4 {[%emt 0:00:16]} 4. Nxd4 {[%emt 0:00:07]} Nf6 {[%emt 0:00:07]} 5. Nc3 {[%emt 0:00:12]} a6 {[%emt 0:00:48]} 6. Be3 {[%emt 0:00:25]} e5 {[%emt 0:01:22]} 7. Nb3 {[%emt 0:00:29]} Be6 {[%emt 0:00:09]} 8. f3 {[%emt 0:00:16]} h5 {[%emt 0:00:27]} 9. Qd2 {[%emt 0:00:28]} Nbd7 {[%emt 0:00:31]} 10. O-O-O {[%emt 0:01:06]} b5 {[%emt 0:01:07]} 11. Nd5 {[%emt 0:03:56]} Bxd5 {[%emt 0:00:19]} 12. exd5 {[%emt 0:00:07]} Nb6 {[%emt 0:06:17]} 13. Bg5 {[%emt 0:06:14]} Be7 {[%emt 0:01:52]} 14. Bxf6 {[%emt 0:04:01]} Bxf6 {[%emt 0:00:31]} 15. Kb1 {[%emt 0:00:16]} Bg5 {[%emt 0:04:55]} 16. Qb4 {[%emt 0:02:50]} Rc8 {[%emt 0:06:45]} 17. Na5 {[%emt 0:02:12]} O-O {[%emt 0:00:29]} 18. h4 {[%emt 0:05:45]} Qc7 {[%emt 0:01:22]} 19. c3 {[%emt 0:03:11]} Bf4 {[%emt 0:05:33]} 20. g4 {[%emt 0:02:32]} Qc5 {[%emt 0:21:01]} 21. Qe4 Na4 {[%emt 0:10:38]} 22. Nc6 {[%emt 0:08:50]} Qf2 {[%emt 0:01:26]} 23. Be2 {[%emt 0:01:54]} Rc7 {[%emt 0:05:42]} 24. gxh5 {[%emt 0:05:55]} Nc5 {[%emt 0:10:44]} 25. Qc2 {[%emt 0:00:40]} f5 {[%emt 0:01:42]} 26. Rdf1 {[%emt 0:18:16]} Qe3 {[%emt 0:00:30]} 27. Rhg1 e4 28. Rg6 Re8 {[%emt 0:05:38]} 29. Nd4 {[%emt 0:01:30]} Re5 {[%emt 0:03:02]} 30. Rxd6 {[%emt 0:06:05]} exf3 {[%emt 0:02:50]} 31. Rd8+ {[%emt 0:00:35]} Kf7 {[%emt 0:00:29]} 32. Bxf3 {[%emt 0:02:45]} Ne4 {[%emt 0:02:42]} 33. Bxe4 {[%emt 0:00:44]} Rxe4 {[%emt 0:00:34]} 34. a3 {[%emt 0:01:29]} Qh3 {[%emt 0:00:48]} 35. Rd1 {[%emt 0:01:50]} Rc4 {[%emt 0:02:27]} 36. Rd7+ {[%emt 0:02:29]} Ke8 {[%emt 0:00:30]} 37. Ra7 {[%emt 0:05:54]} Be5 {[%emt 0:00:19]} 38. Ne2 {[%emt 0:04:08]} Qe3 {[%emt 0:00:02]} 39. Ra8+ {[%emt 0:00:06]} Kd7 {[%emt 0:00:28]} 40. Rd2 {[%emt 0:02:25]} f4 {[%emt 0:00:18]} 41. Nc1 {[%emt 0:04:26]} f3 {[%emt 0:00:13]} 42. Rd3 {[%emt 0:01:06]} Qf4 {[%emt 0:00:29]} 43. Qf2 {[%emt 0:00:20]} Bd4 {[%emt 0:00:14]} 44. Qxf3 {[%emt 0:00:17]} Qxf3 45. Rxf3 {[%emt 0:00:05]} Re1 {[%emt 0:01:12]} 46. cxd4 {[%emt 0:01:38]} Rexc1+ {[%emt 0:00:41]} 47. Ka2 {[%emt 0:00:03]} Rxd4 {[%emt 0:00:20]} 48. Rf7+ {[%emt 0:00:24]} Kd6 {[%emt 0:00:09]} 49. Rxa6+ {[%emt 0:00:46]} Kxd5 {[%emt 0:00:13]} 50. Rxg7 {[%emt 0:02:17]} b4 {[%emt 0:00:22]} 51. Rd7+ {[%emt 0:01:10]} Ke5 {[%emt 0:00:10]} 52. Rxd4 {[%emt 0:00:18]} Kxd4 {[%emt 0:00:06]} 53. Ra4 {[%emt 0:00:13]} Rc4 {[%emt 0:00:10]} 54. Rxb4 {[%emt 0:00:06]} Rxb4 {[%emt 0:00:04]} 55. axb4 {[%emt 0:00:07]} 1-0

[Event "HUN-chT Youth 2019"]
[Site "Budapest"]
[Date "2019.10.27"]
[Round "3.27"]
[White "Juhasz, Agoston"]
[Black "Bakos, Balazs"]
[Result "1-0"]
[ECO "B40"]
[WhiteElo "2115"]
[BlackElo "2408"]
[Annotator "NA"]
[PlyCount "79"]
[EventDate "2019.10.26"]
[EventType "team-tourn"]
[EventCountry "HUN"]
[SourceTitle "playchess.com"]
[Source "ChessBase"]
[SourceQuality "1"]
[TimeControl "5400+30"]

1. e4 {[%emt 0:00:00]} c5 {[%emt 0:00:00]} 2. Nf3 {[%emt 0:00:00]} e6 {[%emt 0:00:00]} 3. c4 {[%emt 0:05:28]} Nc6 {[%emt 0:00:30]} 4. Nc3 {[%emt 0:00:17]} Nf6 {[%emt 0:01:12]} 5. Be2 {[%emt 0:01:14]} Be7 {[%emt 0:02:34]} 6. O-O {[%emt 0:00:20]} Qc7 {[%emt 0:02:48]} 7. d4 {[%emt 0:02:41]} cxd4 {[%emt 0:00:11]} 8. Nxd4 {[%emt 0:00:10]} a6 {[%emt 0:02:10]} 9. Be3 {[%emt 0:03:25]} d6 {[%emt 0:07:13]} 10. Rc1 {[%emt 0:00:59]} Nxd4 {[%emt 0:08:31]} 11. Qxd4 {[%emt 0:01:54]} Bd7 {[%emt 0:01:30]} 12. f4 {[%emt 0:02:20]} Bc6 {[%emt 0:07:43]} 13. Bf3 {[%emt 0:14:45]} O-O {[%emt 0:10:32]} 14. g4 {[%emt 0:05:13]} Nd7 {[%emt 0:07:56]} 15. Qd2 {[%emt 0:16:20]} a5 {[%emt 0:35:45]} 16. g5 {[%emt 0:00:30]} Rfe8 17. h4 b6 {[%emt 0:07:54]} 18. h5 {[%emt 0:03:41]} Nc5 {[%emt 0:01:56]} 19. Qg2 {[%emt 0:02:40]} Qb7 {[%emt 0:00:31]} 20. Kh2 {[%emt 0:04:38]} Bf8 {[%emt 0:00:29]} 21. Rce1 {[%emt 0:03:25]} Rad8 {[%emt 0:00:30]} 22. Bg1 {[%emt 0:02:22]} Nd3 {[%emt 0:00:27]} 23. Rd1 {[%emt 0:05:42]} Nxf4 {[%emt 0:00:14]} 24. Qf2 {[%emt 0:00:54]} Rb8 {[%emt 0:00:47]} 25. Bg4 {[%emt 0:02:44]} e5 {[%emt 0:00:29]} 26. Nd5 {[%emt 0:01:22]} Bxd5 {[%emt 0:00:14]} 27. cxd5 {[%emt 0:00:47]} Be7 {[%emt 0:00:21]} 28. g6 {[%emt 0:01:15]} fxg6 {[%emt 0:00:49]} 29. hxg6 {[%emt 0:00:14]} Nxg6 {[%emt 0:00:40]} 30. Be6+ {[%emt 0:11:34]} Kh8 {[%emt 0:00:02]} 31. Qg3 {[%emt 0:00:57]} Rf8 {[%emt 0:00:58]} 32. Be3 {[%emt 0:02:14]} Rxf1 {[%emt 0:00:30]} 33. Rxf1 {[%emt 0:00:01]} Rf8 {[%emt 0:00:15]} 34. Rg1 {[%emt 0:03:12]} Bh4 {[%emt 0:00:47]} 35. Qh3 {[%emt 0:01:26]} Qe7 {[%emt 0:00:29]} 36. Rg4 {[%emt 0:01:07]} Bf2 {[%emt 0:00:29]} 37. Bg5 {[%emt 0:01:08]} Qc7 {[%emt 0:00:28]} 38. Bf5 {[%emt 0:00:02]} Qf7 {[%emt 0:00:34]} 39. Rg2 {[%emt 0:00:56]} Bd4 {[%emt 0:00:29]} 40. Bd2 {[%emt 0:00:20]} 1-0

[Event "HUN-chT Youth 2019"]
[Site "Budapest"]
[Date "2019.10.27"]
[Round "3.28"]
[White "Erseki, Aron"]
[Black "Virag, Balint"]
[Result "0-1"]
[ECO "C02"]
[WhiteElo "1847"]
[BlackElo "2100"]
[Annotator "NA"]
[PlyCount "66"]
[EventDate "2019.10.26"]
[EventType "team-tourn"]
[EventCountry "HUN"]
[SourceTitle "playchess.com"]
[Source "ChessBase"]
[SourceQuality "1"]
[TimeControl "5400+30"]

1. e4 {[%emt 0:00:00]} e6 {[%emt 0:00:00]} 2. d4 {[%emt 0:00:07]} d5 {[%emt 0:00:00]} 3. e5 {[%emt 0:00:49]} c5 {[%emt 0:00:03]} 4. c3 {[%emt 0:00:04]} Nc6 {[%emt 0:00:11]} 5. Nf3 {[%emt 0:04:31]} Bd7 {[%emt 0:00:13]} 6. Be2 {[%emt 0:01:16]} Nge7 {[%emt 0:06:41]} 7. O-O {[%emt 0:03:22]} Nf5 {[%emt 0:03:03]} 8. Bd3 {[%emt 0:02:36]} g6 {[%emt 0:04:00]} 9. Be3 {[%emt 0:02:32]} Qb6 {[%emt 0:02:35]} 10. Qc2 {[%emt 0:04:11]} Rc8 {[%emt 0:02:44]} 11. Bxf5 {[%emt 0:01:06]} gxf5 {[%emt 0:03:51]} 12. Qd2 {[%emt 0:07:27]} cxd4 {[%emt 0:05:41]} 13. Bxd4 {[%emt 0:08:18]} Qc7 {[%emt 0:08:16]} 14. Qg5 {[%emt 0:05:00]} h6 {[%emt 0:02:18]} 15. Qh4 {[%emt 0:04:34]} Ne7 {[%emt 0:02:41]} 16. Nbd2 {[%emt 0:02:23]} Rg8 {[%emt 0:03:05]} 17. Rac1 Rg4 {[%emt 0:15:32]} 18. Qh5 {[%emt 0:05:25]} Ng6 {[%emt 0:00:30]} 19. Be3 {[%emt 0:02:05]} Nxe5 {[%emt 0:01:00]} 20. Bxh6 {[%emt 0:00:52]} Nd3 {[%emt 0:01:41]} 21. h3 {[%emt 0:05:19]} Rg8 {[%emt 0:02:15]} 22. Ng5 {[%emt 0:03:51]} Rg6 {[%emt 0:12:05]} 23. Bxf8 Kxf8 24. Rb1 {[%emt 0:13:25]} Ke7 {[%emt 0:02:39]} 25. Ndf3 {[%emt 0:03:00]} Rcg8 {[%emt 0:01:23]} 26. h4 {[%emt 0:08:31]} Nf4 {[%emt 0:04:08]} 27. Qh7 {[%emt 0:00:31]} R6g7 {[%emt 0:00:35]} 28. Qh6 {[%emt 0:00:29]} Qb8 {[%emt 0:01:02]} 29. Rfe1 {[%emt 0:06:31]} Rg6 {[%emt 0:02:26]} 30. Qh7 {[%emt 0:00:07]} R8g7 {[%emt 0:01:09]} 31. Ne5 {[%emt 0:00:26]} Rxh7 {[%emt 0:01:46]} 32. Nxg6+ {[%emt 0:00:14]} fxg6 {[%emt 0:00:02]} 33. Nxh7 {[%emt 0:00:08]} Qh8 {[%emt 0:00:17]} 0-1

[Event "HUN-chT Youth 2019"]
[Site "Budapest"]
[Date "2019.10.27"]
[Round "3.29"]
[White "Koltai, Dora"]
[Black "Bencze, Balazs Dominik"]
[Result "1-0"]
[ECO "B03"]
[WhiteElo "1845"]
[BlackElo "1779"]
[Annotator "NA"]
[PlyCount "63"]
[EventDate "2019.10.26"]
[EventType "team-tourn"]
[EventCountry "HUN"]
[SourceTitle "playchess.com"]
[Source "ChessBase"]
[SourceQuality "1"]
[TimeControl "5400+30"]

1. e4 {[%emt 0:00:00]} Nf6 {[%emt 0:00:00]} 2. e5 {[%emt 0:00:01]} Nd5 {[%emt 0:00:00]} 3. c4 {[%emt 0:00:50]} Nb6 {[%emt 0:00:00]} 4. d4 {[%emt 0:00:10]} d6 {[%emt 0:00:03]} 5. exd6 {[%emt 0:00:57]} exd6 {[%emt 0:00:39]} 6. h3 {[%emt 0:06:36]} Be7 {[%emt 0:03:00]} 7. Nf3 {[%emt 0:00:57]} Bf5 {[%emt 0:03:43]} 8. Bd3 {[%emt 0:02:31]} Bxd3 {[%emt 0:02:44]} 9. Qxd3 {[%emt 0:00:08]} O-O {[%emt 0:01:31]} 10. O-O {[%emt 0:02:15]} Nc6 {[%emt 0:02:50]} 11. Nc3 {[%emt 0:02:42]} Nb4 {[%emt 0:07:53]} 12. Qe2 {[%emt 0:07:04]} Re8 {[%emt 0:07:48]} 13. Be3 {[%emt 0:02:54]} d5 {[%emt 0:04:43]} 14. a3 {[%emt 0:10:09]} Nc6 {[%emt 0:00:19]} 15. c5 {[%emt 0:06:20]} Nc4 {[%emt 0:02:22]} 16. Nd1 {[%emt 0:07:17]} Nxe3 {[%emt 0:02:17]} 17. Nxe3 Bf6 {[%emt 0:12:02]} 18. Qd3 {[%emt 0:08:18]} Re4 {[%emt 0:09:29]} 19. Nc2 {[%emt 0:07:11]} Qd7 {[%emt 0:06:29]} 20. Rad1 {[%emt 0:12:49]} Rae8 {[%emt 0:00:30]} 21. b4 Ne7 22. Nd2 {[%emt 0:01:00]} Rh4 {[%emt 0:16:19]} 23. Rfe1 {[%emt 0:03:09]} g5 {[%emt 0:06:39]} 24. Nf3 {[%emt 0:05:57]} Rh6 {[%emt 0:01:40]} 25. Ne3 {[%emt 0:03:20]} Rh5 {[%emt 0:08:00]} 26. Ng4 {[%emt 0:04:05]} Bg7 {[%emt 0:00:47]} 27. Nge5 {[%emt 0:02:27]} Qf5 {[%emt 0:01:07]} 28. Qb5 {[%emt 0:04:19]} c6 {[%emt 0:00:33]} 29. Qxb7 {[%emt 0:00:28]} Bxe5 {[%emt 0:00:29]} 30. Rxe5 {[%emt 0:00:17]} Qf6 {[%emt 0:00:29]} 31. Rde1 {[%emt 0:00:39]} Kf8 {[%emt 0:00:34]} 32. Qd7 {[%emt 0:00:31]} 1-0

[Event "HUN-chT Youth 2019"]
[Site "Budapest"]
[Date "2019.10.27"]
[Round "3.30"]
[White "Bodo, Boglarka"]
[Black "Matyassy, Lazar"]
[Result "1/2-1/2"]
[ECO "B40"]
[WhiteElo "1618"]
[BlackElo "1652"]
[Annotator "NA"]
[PlyCount "38"]
[EventDate "2019.10.26"]
[EventType "team-tourn"]
[EventCountry "HUN"]
[SourceTitle "playchess.com"]
[Source "ChessBase"]
[SourceQuality "1"]
[TimeControl "5400+30"]

1. e4 {[%emt 0:00:00]} c5 {[%emt 0:00:00]} 2. Nf3 {[%emt 0:00:00]} e6 {[%emt 0:00:00]} 3. c3 {[%emt 0:00:00]} d5 {[%emt 0:00:00]} 4. exd5 {[%emt 0:00:11]} Qxd5 {[%emt 0:00:00]} 5. d4 {[%emt 0:03:35]} Nf6 {[%emt 0:00:07]} 6. Na3 {[%emt 0:01:52]} Nc6 {[%emt 0:03:34]} 7. Be3 {[%emt 0:02:45]} cxd4 {[%emt 0:00:14]} 8. Nb5 {[%emt 0:00:49]} Qd7 {[%emt 0:01:59]} 9. Nbxd4 {[%emt 0:05:28]} Be7 {[%emt 0:04:04]} 10. Bc4 {[%emt 0:11:51]} O-O {[%emt 0:03:00]} 11. O-O {[%emt 0:03:29]} Nd5 {[%emt 0:16:56]} 12. Nf5 {[%emt 0:17:43]} Nxe3 {[%emt 0:07:31]} 13. Nxe3 {[%emt 0:01:09]} Qc7 {[%emt 0:01:05]} 14. Bd3 {[%emt 0:07:59]} h6 {[%emt 0:03:04]} 15. Qe2 {[%emt 0:03:26]} b6 {[%emt 0:03:18]} 16. Nc2 {[%emt 0:07:33]} Bf6 {[%emt 0:06:18]} 17. Qe4 {[%emt 0:04:23]} g6 {[%emt 0:00:59]} 18. Qe3 {[%emt 0:05:28]} Kg7 {[%emt 0:04:38]} 19. Ncd4 {[%emt 0:02:32]} Nxd4 {[%emt 0:02:15]} 1/2-1/2

[Event "HUN-chT Youth 2019"]
[Site "Budapest"]
[Date "2019.10.27"]
[Round "3.31"]
[White "Szalay-Ocsak, Bank"]
[Black "Bohus, Adam"]
[Result "0-1"]
[ECO "C48"]
[WhiteElo "1852"]
[BlackElo "2229"]
[Annotator "NA"]
[PlyCount "64"]
[EventDate "2019.10.26"]
[EventType "team-tourn"]
[EventCountry "HUN"]
[SourceTitle "playchess.com"]
[Source "ChessBase"]
[SourceQuality "1"]
[TimeControl "5400+30"]

1. e4 {[%emt 0:00:00]} e5 {[%emt 0:00:00]} 2. Nf3 {[%emt 0:00:00]} Nc6 {[%emt 0:00:00]} 3. Nc3 {[%emt 0:00:00]} Nf6 {[%emt 0:00:01]} 4. Bb5 {[%emt 0:00:00]} Bd6 {[%emt 0:14:01]} 5. O-O {[%emt 0:05:24]} a6 {[%emt 0:04:38]} 6. Ba4 {[%emt 0:02:23]} O-O {[%emt 0:03:03]} 7. d3 {[%emt 0:02:11]} h6 {[%emt 0:00:47]} 8. h3 {[%emt 0:03:31]} Re8 {[%emt 0:00:32]} 9. Be3 {[%emt 0:01:29]} Bf8 {[%emt 0:00:29]} 10. a3 {[%emt 0:05:39]} b5 {[%emt 0:14:40]} 11. Bb3 {[%emt 0:02:44]} Bb7 {[%emt 0:00:09]} 12. Qd2 {[%emt 0:09:53]} Nb8 {[%emt 0:08:23]} 13. Rfe1 {[%emt 0:07:41]} d5 {[%emt 0:03:19]} 14. exd5 {[%emt 0:00:40]} Nxd5 {[%emt 0:00:08]} 15. Nxd5 {[%emt 0:00:42]} Bxd5 {[%emt 0:00:09]} 16. Bxd5 {[%emt 0:02:22]} Qxd5 {[%emt 0:00:02]} 17. Re2 {[%emt 0:12:50]} c5 {[%emt 0:03:29]} 18. Rae1 {[%emt 0:03:32]} Nc6 {[%emt 0:00:28]} 19. Bf4 {[%emt 0:14:01]} f6 {[%emt 0:00:35]} 20. Bg3 {[%emt 0:01:42]} Rac8 {[%emt 0:04:31]} 21. Nh4 {[%emt 0:05:14]} Nd4 22. Re3 Kh7 {[%emt 0:17:51]} 23. f4 {[%emt 0:04:43]} g5 {[%emt 0:02:32]} 24. fxg5 {[%emt 0:00:51]} hxg5 {[%emt 0:00:26]} 25. Nf3 {[%emt 0:00:50]} Nf5 {[%emt 0:00:15]} 26. Nxg5+ {[%emt 0:04:19]} fxg5 {[%emt 0:01:11]} 27. Rxe5 {[%emt 0:00:18]} Rxe5 {[%emt 0:04:56]} 28. Rxe5 {[%emt 0:01:08]} Qd4+ {[%emt 0:07:40]} 29. Kh2 {[%emt 0:00:23]} Kg6 {[%emt 0:05:57]} 30. c3 {[%emt 0:05:04]} Qd7 {[%emt 0:01:06]} 31. Qe2 {[%emt 0:02:40]} Nxg3 {[%emt 0:01:48]} 32. Re6+ Kf7 0-1

[Event "HUN-chT Youth 2019"]
[Site "Budapest"]
[Date "2019.10.27"]
[Round "3.32"]
[White "Pasztor, Balazs"]
[Black "Farkas, Otto Jr."]
[Result "1-0"]
[ECO "B03"]
[WhiteElo "2152"]
[BlackElo "1848"]
[Annotator "NA"]
[PlyCount "81"]
[EventDate "2019.10.26"]
[EventType "team-tourn"]
[EventCountry "HUN"]
[SourceTitle "playchess.com"]
[Source "ChessBase"]
[SourceQuality "1"]
[TimeControl "5400+30"]

1. e4 {[%emt 0:00:00]} Nf6 {[%emt 0:00:00]} 2. e5 {[%emt 0:00:00]} Nd5 {[%emt 0:00:00]} 3. c4 {[%emt 0:00:10]} Nb6 {[%emt 0:00:00]} 4. d4 {[%emt 0:00:09]} d6 {[%emt 0:00:01]} 5. exd6 {[%emt 0:00:17]} cxd6 {[%emt 0:00:17]} 6. Nc3 {[%emt 0:00:25]} g6 {[%emt 0:00:06]} 7. h4 {[%emt 0:01:07]} Bg7 {[%emt 0:00:30]} 8. h5 {[%emt 0:00:42]} O-O {[%emt 0:04:25]} 9. Be3 {[%emt 0:05:32]} Nc6 {[%emt 0:08:29]} 10. Qd2 {[%emt 0:10:15]} e5 {[%emt 0:11:07]} 11. d5 {[%emt 0:11:05]} Nd4 {[%emt 0:00:53]} 12. Nf3 {[%emt 0:07:52]} Nf5 {[%emt 0:09:18]} 13. O-O-O {[%emt 0:11:42]} Nxe3 {[%emt 0:03:46]} 14. fxe3 {[%emt 0:02:23]} Bg4 {[%emt 0:00:45]} 15. hxg6 {[%emt 0:06:36]} fxg6 {[%emt 0:02:56]} 16. Be2 {[%emt 0:05:34]} Rc8 {[%emt 0:02:04]} 17. b3 {[%emt 0:05:41]} Nd7 {[%emt 0:03:10]} 18. Ne4 {[%emt 0:04:45]} Nc5 {[%emt 0:06:54]} 19. Nxc5 {[%emt 0:07:22]} Rxc5 {[%emt 0:00:57]} 20. e4 {[%emt 0:02:29]} Bxf3 {[%emt 0:07:26]} 21. gxf3 {[%emt 0:00:30]} a5 22. Kb2 Qf6 {[%emt 0:01:00]} 23. a3 {[%emt 0:07:50]} Qf4 {[%emt 0:02:59]} 24. b4 {[%emt 0:01:44]} Rcc8 {[%emt 0:03:31]} 25. Qxf4 {[%emt 0:01:43]} exf4+ {[%emt 0:00:12]} 26. Kb3 {[%emt 0:00:18]} axb4 {[%emt 0:00:12]} 27. axb4 {[%emt 0:01:26]} b6 {[%emt 0:00:52]} 28. Bf1 {[%emt 0:01:36]} Rc7 {[%emt 0:02:34]} 29. Rh2 {[%emt 0:01:13]} Ra8 {[%emt 0:03:22]} 30. Ra2 {[%emt 0:00:44]} Rxa2 {[%emt 0:00:06]} 31. Kxa2 {[%emt 0:00:06]} Ra7+ {[%emt 0:02:48]} 32. Kb3 {[%emt 0:00:19]} Kf7 {[%emt 0:06:15]} 33. Bh3 {[%emt 0:00:58]} Ke7 {[%emt 0:04:11]} 34. c5 {[%emt 0:01:38]} bxc5 {[%emt 0:00:45]} 35. bxc5 {[%emt 0:00:24]} dxc5 {[%emt 0:00:07]} 36. d6+ {[%emt 0:00:20]} Kd8 {[%emt 0:00:28]} 37. Kc4 {[%emt 0:00:56]} Rb7 {[%emt 0:04:17]} 38. Rd3 {[%emt 0:01:40]} Bf6 {[%emt 0:06:06]} 39. Ra3 {[%emt 0:00:28]} Rb8 {[%emt 0:00:05]} 40. Ra7 {[%emt 0:00:54]} Rb4+ {[%emt 0:01:10]} 41. Kd5 {[%emt 0:00:17]} 1-0

[Event "HUN-chT Youth 2019"]
[Site "Budapest"]
[Date "2019.10.27"]
[Round "3.33"]
[White "Varga, Boldizsar"]
[Black "Dibusz, Domonkos"]
[Result "1/2-1/2"]
[ECO "E46"]
[WhiteElo "1829"]
[BlackElo "2088"]
[Annotator "NA"]
[PlyCount "88"]
[EventDate "2019.10.26"]
[EventType "team-tourn"]
[EventCountry "HUN"]
[SourceTitle "playchess.com"]
[Source "ChessBase"]
[SourceQuality "1"]
[TimeControl "5400+30"]

1. d4 {[%emt 0:00:00]} Nf6 {[%emt 0:00:00]} 2. c4 {[%emt 0:00:00]} e6 {[%emt 0:00:00]} 3. Nc3 {[%emt 0:00:00]} Bb4 {[%emt 0:00:02]} 4. e3 {[%emt 0:00:10]} O-O {[%emt 0:00:51]} 5. Nge2 {[%emt 0:00:14]} d5 {[%emt 0:00:09]} 6. a3 {[%emt 0:00:28]} Be7 {[%emt 0:00:06]} 7. Nf4 {[%emt 0:04:16]} c6 {[%emt 0:05:35]} 8. Bd3 {[%emt 0:01:21]} Nbd7 {[%emt 0:01:11]} 9. O-O {[%emt 0:03:41]} Re8 {[%emt 0:01:47]} 10. b4 {[%emt 0:05:19]} Nf8 {[%emt 0:09:33]} 11. Bb2 {[%emt 0:05:30]} Ng6 {[%emt 0:01:25]} 12. Nxg6 {[%emt 0:04:03]} hxg6 {[%emt 0:00:09]} 13. Qb3 {[%emt 0:06:53]} Bd6 {[%emt 0:00:59]} 14. c5 {[%emt 0:05:26]} Bc7 {[%emt 0:03:50]} 15. f4 {[%emt 0:00:55]} Ng4 {[%emt 0:03:47]} 16. Rf3 {[%emt 0:05:58]} a6 {[%emt 0:25:04]} 17. a4 {[%emt 0:05:05]} Qf6 {[%emt 0:01:54]} 18. Bc1 {[%emt 0:06:43]} Bd7 {[%emt 0:03:48]} 19. Bd2 {[%emt 0:04:17]} Nh6 {[%emt 0:02:26]} 20. Qb1 {[%emt 0:06:43]} Nf5 {[%emt 0:02:42]} 21. b5 {[%emt 0:04:03]} axb5 22. axb5 Nxd4 {[%emt 0:16:37]} 23. exd4 {[%emt 0:01:58]} Qxd4+ {[%emt 0:00:01]} 24. Kh1 {[%emt 0:09:02]} cxb5 {[%emt 0:00:50]} 25. Rxa8 {[%emt 0:02:46]} Rxa8 {[%emt 0:00:04]} 26. h3 {[%emt 0:05:55]} Qxc5 {[%emt 0:02:55]} 27. Nxb5 {[%emt 0:03:19]} Bxb5 {[%emt 0:03:48]} 28. Qxb5 {[%emt 0:00:56]} Qc6 {[%emt 0:06:09]} 29. Rf1 {[%emt 0:02:41]} Bd6 {[%emt 0:03:14]} 30. Rb1 {[%emt 0:04:35]} Ra3 {[%emt 0:01:31]} 31. Bf1 {[%emt 0:01:22]} d4 {[%emt 0:01:08]} 32. Bb4 {[%emt 0:01:16]} Bxb4 {[%emt 0:01:37]} 33. Qxb4 {[%emt 0:00:00]} Ra4 {[%emt 0:01:33]} 34. Qxb7 {[%emt 0:00:35]} Qxb7 {[%emt 0:00:10]} 35. Rxb7 d3 {[%emt 0:01:19]} 36. Bxd3 {[%emt 0:00:31]} Rxf4 {[%emt 0:00:01]} 37. Rb8+ {[%emt 0:00:29]} Kh7 {[%emt 0:00:00]} 38. Rb7 {[%emt 0:00:23]} e5 {[%emt 0:00:38]} 39. Re7 {[%emt 0:00:39]} f6 {[%emt 0:00:21]} 40. Kh2 {[%emt 0:00:38]} Rd4 {[%emt 0:00:16]} 41. Bb1 {[%emt 0:00:31]} Rb4 {[%emt 0:00:15]} 42. Bc2 {[%emt 0:00:14]} Rc4 {[%emt 0:00:42]} 43. Bb3 {[%emt 0:00:23]} Rb4 {[%emt 0:00:17]} 44. Bd5 {[%emt 0:01:23]} Rd4 1/2-1/2

[Event "HUN-chT Youth 2019"]
[Site "Budapest"]
[Date "2019.10.27"]
[Round "3.34"]
[White "Kovacs, Gabor Etele"]
[Black "Broderick, Tamas"]
[Result "1/2-1/2"]
[ECO "B30"]
[WhiteElo "2053"]
[BlackElo "1571"]
[Annotator "NA"]
[PlyCount "96"]
[EventDate "2019.10.26"]
[EventType "team-tourn"]
[EventCountry "HUN"]
[SourceTitle "playchess.com"]
[Source "ChessBase"]
[SourceQuality "1"]
[TimeControl "5400+30"]

1. e4 {[%emt 0:00:00]} c5 {[%emt 0:00:28]} 2. Nf3 {[%emt 0:00:00]} Nc6 {[%emt 0:00:18]} 3. Bb5 {[%emt 0:00:00]} Qc7 {[%emt 0:00:47]} 4. Nc3 {[%emt 0:01:29]} a6 {[%emt 0:03:57]} 5. Bxc6 {[%emt 0:00:39]} dxc6 {[%emt 0:00:08]} 6. h3 {[%emt 0:01:50]} e5 {[%emt 0:01:54]} 7. d3 {[%emt 0:01:23]} Ne7 {[%emt 0:01:54]} 8. Be3 {[%emt 0:00:40]} Ng6 {[%emt 0:00:18]} 9. Qd2 {[%emt 0:00:56]} Be7 {[%emt 0:03:11]} 10. a4 {[%emt 0:00:38]} a5 {[%emt 0:00:49]} 11. O-O {[%emt 0:03:27]} O-O {[%emt 0:02:24]} 12. Ne2 {[%emt 0:02:03]} f6 {[%emt 0:01:18]} 13. Qc3 {[%emt 0:04:33]} b6 {[%emt 0:01:10]} 14. Nd2 {[%emt 0:00:21]} Be6 {[%emt 0:01:25]} 15. f4 {[%emt 0:13:05]} exf4 {[%emt 0:01:41]} 16. Nxf4 {[%emt 0:00:07]} Nxf4 {[%emt 0:04:18]} 17. Bxf4 {[%emt 0:01:54]} Bd6 {[%emt 0:01:22]} 18. Bxd6 {[%emt 0:02:32]} Qxd6 {[%emt 0:00:09]} 19. Nf3 {[%emt 0:00:07]} Qg3 {[%emt 0:08:34]} 20. Kh1 {[%emt 0:22:00]} Rad8 {[%emt 0:10:36]} 21. Rad1 {[%emt 0:04:01]} Rd7 {[%emt 0:22:47]} 22. b3 Rfd8 23. Ng1 Qd6 {[%emt 0:08:53]} 24. Ne2 {[%emt 0:18:08]} Qe5 {[%emt 0:01:38]} 25. Qxe5 {[%emt 0:00:30]} fxe5 {[%emt 0:00:02]} 26. Ng1 {[%emt 0:00:31]} Re7 {[%emt 0:00:58]} 27. Nf3 {[%emt 0:01:17]} Bf7 {[%emt 0:00:16]} 28. Rf2 {[%emt 0:00:44]} b5 {[%emt 0:02:29]} 29. axb5 {[%emt 0:02:50]} cxb5 {[%emt 0:00:02]} 30. Ra1 {[%emt 0:00:31]} Ra8 {[%emt 0:00:39]} 31. Rff1 {[%emt 0:02:25]} c4 {[%emt 0:02:28]} 32. dxc4 {[%emt 0:07:27]} bxc4 {[%emt 0:00:08]} 33. b4 {[%emt 0:00:26]} a4 {[%emt 0:00:32]} 34. c3 {[%emt 0:01:13]} Be8 {[%emt 0:00:19]} 35. Rfd1 {[%emt 0:03:30]} Bc6 {[%emt 0:00:55]} 36. Nd2 {[%emt 0:00:16]} Bb5 {[%emt 0:00:38]} 37. Kg1 {[%emt 0:00:55]} Rd8 {[%emt 0:01:01]} 38. Nf3 {[%emt 0:00:10]} Rxd1+ {[%emt 0:02:43]} 39. Rxd1 {[%emt 0:00:02]} Bc6 {[%emt 0:00:57]} 40. Kf2 {[%emt 0:01:03]} h6 {[%emt 0:01:50]} 41. Rd8+ {[%emt 0:02:56]} Kf7 {[%emt 0:01:21]} 42. Ke3 {[%emt 0:01:28]} Ke6 {[%emt 0:02:17]} 43. Nd2 {[%emt 0:02:16]} a3 {[%emt 0:02:32]} 44. Nxc4 {[%emt 0:00:32]} a2 {[%emt 0:00:08]} 45. Rd1 {[%emt 0:00:05]} Bb5 {[%emt 0:01:59]} 46. Nd2 {[%emt 0:00:29]} Rd7 {[%emt 0:00:50]} 47. c4 {[%emt 0:00:05]} Bxc4 {[%emt 0:00:27]} 48. Ra1 {[%emt 0:01:07]} Rd3+ {[%emt 0:02:37]} 1/2-1/2